Cogmind - Beta 13 @@@ ROGUE MODE // 2024.04.01 @ 17:06:28 Player: YenYu Result: Destroyed by Y-45 Defender with Beam Rifle Performance ------------- Evolutions (0) 0 Regions Visited (2) 400 Robots Destroyed (41) 205 Value Destroyed (886) 886 Prototype IDs (0) 0 Alien Tech Used (0) 0 Bonus (0) 0 TOTAL SCORE: 1491 Bonus ------- None Cogmind --------- Core Integrity 0/250 Matter 140/300 Energy 250/250 System Corruption 0% Temperature Cool (9) Movement Walking (190) Ox1 Location -10/Subcaves Parts ------- > --- POWER (1) -------- Ion Engine > --- PROPULSION (2) --- Light Treads Carbon-fiber Leg > --- UTILITY (2) ------ Medium Storage Unit Signal Interpreter > --- WEAPON (2) ------- Autogun Autogun > --- INVENTORY (10) --- Ion Engine Light Angular Momentum Engine Aluminum Leg Scrap Shield Autogun Autogun Mace Scrap Shield Fragment (43) Scrap Shield Fragment (30) Peak State ------------ > --- POWER ------------ Ion Engine > --- PROPULSION ------- Light Treads Carbon-fiber Leg > --- UTILITY ---------- Medium Storage Unit Signal Interpreter > --- WEAPON ----------- Autogun Autogun > --- INVENTORY -------- Ion Engine Light Angular Momentum Engine Aluminum Leg Scrap Shield Autogun Autogun Mace Scrap Shield Fragment Scrap Shield Fragment [Rating: 13] Favorites ----------- Power Ion Engine Engine Ion Engine Propulsion Light Treads Treads Light Treads Leg Aluminum Leg Utility Medium Storage Unit Device Terrain Scanner Storage Medium Storage Unit Processor Signal Interpreter Weapon Autogun Ballistic Gun Autogun Launcher Grenade Launcher Impact Weapon Mace Build | -11 -10 -10 ------- Run | Yrd Mat Sub Slots Evolved . | . . . Power . | . . . Propulsion . | . . . Utility . | . . . Weapon . | . . . Parts Attached 26 | 6 10 10 Power 3 | 1 1 1 Engine 3 | 1 1 1 Core . | . . . Reactor . | . . . Propulsion 8 | 2 4 2 Treads 4 | 2 2 . Leg 4 | . 2 2 Wheel . | . . . Hover . | . . . Flight . | . . . Utility 4 | 1 3 . Device 1 | . 1 . Storage 2 | 1 1 . Processor 1 | . 1 . Hackware . | . . . Protection . | . . . Artifact . | . . . Weapon 11 | 2 2 7 Energy Gun . | . . . Energy Cannon . | . . . Ballistic Gun 9 | 2 2 5 Ballistic Cannon . | . . . Launcher 1 | . . 1 Special Weapon . | . . . Impact Weapon 1 | . . 1 Slashing Weapon . | . . . Piercing Weapon . | . . . Special Melee Weapon . | . . . Unidentified Prototypes . | . . . Parts Lost 6 | . 4 2 Power 1 | . 1 . Propulsion 3 | . 2 1 Utility . | . . . Weapon 2 | . 1 1 Highest Loss Streak 2 | . 2 2 To Critical Strikes . | . . . Average Slot Usage (%) 95 | . 90 99 Engine 12 | . 10 14 Treads 17 | . 18 15 Leg 10 | . 8 11 Storage 14 | . 15 14 Processor 11 | . 7 14 Ballistic Gun 26 | . 25 27 Naked Turns . | . . . Heaviest Build 22 | 12 22 22 Greatest Support 40 | 40 40 40 Greatest Overweight (x) 6 | 1 6 2 Average Overweight (x) . | . . 1 Largest Inventory Capacity 10 | 8 10 10 Average Capacity 9 | 7 9 10 Most Carried 10 | 6 10 10 Average Carried 7 | 1 6 9 Final Capacity 10 | 8 10 10 Final Carried 10 | 1 10 10 Class Distribution -------------------- 89% | Mutant 10% | Scavenger-Mutant Dominant Class ---------------- Mutant | -10/Materials Mutant | -10/Subcaves Resources | -11 -10 -10 ----------- Run | Yrd Mat Sub Matter Collected 1061 | 204 616 241 Remotely . | . . . Salvage Created 1088 | . 831 257 Parts 71 | . 53 18 Haulers Intercepted 2 | . 2 . Recyclers Shooed 3 | . 3 . Parts Field Recycled . | . . . Retrieved Matter . | . . . Parts Self-Destructed 13 | . . 13 Prevented . | . . . Kills | -11 -10 -10 ------- Run | Yrd Mat Sub Combat Hostiles Destroyed 27 | . 13 14 Guns 19 | . 13 6 AOE 8 | . . 8 Classes Destroyed 9 | . 8 1 Worker 3 | . 3 . Builder 3 | . 3 . Hauler 2 | . 2 . Recycler 2 | . 2 . Mechanic 1 | . 1 . Watcher 3 | . 3 . Swarmer 9 | . 6 3 Grunt 7 | . 7 . Subdweller 11 | . . 11 Best Kill Streak 10 | . 7 10 Combat Bots Only 10 | . 6 10 Max Kills in Single Turn 6 | . 2 6 Gunslinging . | . . . Exploded 6 | . . 6 Melee . | . . . Uniques/NPCs Destroyed . | . . . Combat | -11 -10 -10 -------- Run | Yrd Mat Sub Hostile Shots Fired 166 | . 114 52 Missed 41 | . 31 10 Damage Taken 1548 | . 755 793 Core 256 | . 137 119 Absorbed by Shields . | . . . Core Remaining (%) 100 | 100 . . Volleys Fired 119 | . 85 34 Largest 2 | . 2 2 Hottest 60 | . 46 60 Shots Fired 216 | . 149 67 Gun 213 | . 149 64 Cannon . | . . . Launcher 3 | . . 3 Special . | . . . Kinetic 213 | . 149 64 Thermal . | . . . Explosive 3 | . . 3 Electromagnetic . | . . . Robot Hit Streak 24 | . 24 16 Robot Miss Streak 5 | . 5 4 Penetration Max . | . . . Secondary Targets 6 | . 4 2 Max Gunslinging Chain 1 | . 1 1 Shots Hit Robots 120 | . 84 36 Core Hits 62 | . 38 24 Critical Kills 1 | . 1 . Critical Parts Destroyed 2 | . 1 1 Critical Strikes 3 | . 2 1 Destroy 3 | . 2 1 Melee Attacks 1 | . . 1 Impact 1 | . . 1 Slashing . | . . . Piercing . | . . . Sneak Attacks . | . . . Combat Hostiles . | . . . Follow-up Attacks . | . . . Damage Inflicted 2920 | . 1273 1647 Guns 1798 | . 1269 529 Cannons . | . . . Explosions 1118 | . . 1118 Melee . | . . . Ramming 4 | . 4 . Kinetic 1798 | . 1269 529 Thermal . | . . . Explosive 1118 | . . 1118 Electromagnetic . | . . . Impact . | . . . Slashing . | . . . Piercing . | . . . Highest Corruption . | . . . Average Corruption . | . . . Corruption Purged . | . . . Corruption Blocked . | . . . Overload Shots . | . . . Overflow Damage . | . . . Projectiles . | . . . Explosions . | . . . Melee . | . . . Knockbacks . | . . . Impact . | . . . Kinetic . | . . . Secondary . | . . . Self-Inflicted Damage 22 | . . 22 Shots 2 | . . 2 Rammed 1 | . 1 . Targets Rammed 1 | . 1 . Kicked . | . . . Crushed . | . . . Highest Temperature 24 | . 24 . Average Temperature 8 | . 8 . Received Heat Transfer 282 | . 171 111 Siege Activations . | . . . Robots Corrupted . | . . . Combat Hostiles . | . . . Parts Fried . | . . . Impact Corruptions . | . . . Robots Melted . | . . . Combat Hostiles . | . . . Parts Melted . | . . . Heat Transferred . | . . . Parts Sabotaged . | . . . Parts Stolen . | . . . Parts Stripped . | . . . Power Chain Reactions . | . . . Alert | -11 -10 -10 ------- Run | Yrd Mat Sub Peak Influence 309 | . 309 . Initial . | . . . Average 118 | . 168 . Maximum Alert Level 1 | . 1 . Low Security (%) 69 | 100 57 . Level 1 30 | . 42 . Level 2 . | . . . Level 3 . | . . . Level 4 . | . . . Level 5 . | . . . High Security . | . . . Max Security . | . . . Squads Dispatched 2 | . 2 . Investigation 2 | . 2 . Extermination . | . . . Reinforcement . | . . . Assault . | . . . Garrison . | . . . Intercept . | . . . Searches Triggered . | . . . Construction Impeded . | . . . Haulers Reinforced . | . . . Active Scanning Responses . | . . . Cargo Convoy Interrupts . | . . . Stealth | -11 -10 -10 --------- Run | Yrd Mat Sub Distress Signals 2 | . 2 . Communications Jammed . | . . . Distress Signals . | . . . Times Spotted 38 | . 21 17 Peak Tracking Total 10 | . 7 10 Tactical Retreats . | . . . Traps | -11 -10 -10 ------- Run | Yrd Mat Sub Traps Triggered 1 | . 1 . Indirectly . | . . . Trap Hack Attempts . | . . . Triggered . | . . . Disarmed . | . . . Reprogrammed . | . . . Reused . | . . . Traps Extracted . | . . . Installed . | . . . Triggered . | . . . Machines | -11 -10 -10 ---------- Run | Yrd Mat Sub Machines Disabled 1 | . 1 . Max in Single Turn 1 | . 1 . Machines Repaired . | . . . Machines Dismantled . | . . . Machines Sabotaged . | . . . Overloaded Fab Kills . | . . . Hacking | -11 -10 -10 --------- Run | Yrd Mat Sub Machines Accessed 2 | . 2 . Terminals 2 | . 2 . Fabricators . | . . . Repair Stations . | . . . Recycling Units . | . . . Scanalyzers . | . . . Garrison Access . | . . . Total Hacks 9 | . 9 . Successful 3 | . 3 . Failed 6 | . 6 . Catastrophic 4 | . 4 . Database Lockouts . | . . . Manual 9 | . 9 . Terminals 9 | . 9 . Fabricators . | . . . Repair Stations . | . . . Recycling Units . | . . . Scanalyzers . | . . . Garrison Access . | . . . Terminal Hacks 3 | . 3 . Part Schematic 1 | . 1 . Surveillance Status 1 | . 1 . Transport Status 1 | . 1 . Fabricator Hacks . | . . . Repair Station Hacks . | . . . Recycling Unit Hacks . | . . . Scanalyzer . | . . . Garrison Access Hacks . | . . . Unauthorized Hacks . | . . . Terminals . | . . . Fabricators . | . . . Repair Stations . | . . . Recycling Units . | . . . Scanalyzers . | . . . Garrison Access . | . . . Data Cores Recovered . | . . . Used . | . . . Hacking Detections 2 | . 2 . Full Trace Events 1 | . 1 . Feedback Events . | . . . Feedback Blocked . | . . . Robot Schematics Acquired . | . . . Robots Built . | . . . Authchips . | . . . Time . | . . . Total Robot Build Rating . | . . . Part Schematics Acquired 1 | . 1 . Parts Built . | . . . Authchips . | . . . Time . | . . . Total Part Build Rating . | . . . Parts Repaired . | . . . Time . | . . . Parts Recycled . | . . . Recycled Matter . | . . . Retrieved Matter . | . . . Retrieved Components . | . . . Parts Scanalyzed . | . . . Part Schematics Acquired . | . . . Parts Damaged . | . . . Bothacking | -11 -10 -10 ------------ Run | Yrd Mat Sub Used RIF Installer . | . . . Robots Hacked . | . . . Non-combat . | . . . Combat . | . . . Robot Hacks Applied . | . . . Relay Couplers Released . | . . . Fabnet Peak Effective % . | . . . Robots Rewired . | . . . Allies Hacked . | . . . Hacks Repelled . | . . . Allies | -11 -10 -10 -------- Run | Yrd Mat Sub Total Allies . | . . . Largest Group . | . . . Highest-Rated Group . | . . . Highest-Rated Ally . | . . . Total Orders . | . . . Ally Attacks . | . . . Total Damage . | . . . Kills . | . . . Allies Corrupted . | . . . Allies Melted . | . . . Intel | -11 -10 -10 ------- Run | Yrd Mat Sub Robot Analysis Total . | . . . Derelict Logs Recovered . | . . . Drone Launches . | . . . Drone Recoveries . | . . . Exploration | -11 -10 -10 ------------- Run | Yrd Mat Sub Turns Passed 2540 | 376 899 1265 Spaces Moved 957 | 80 369 508 Core 19 | 17 2 . Treads 414 | 63 259 92 Legs 524 | . 108 416 Wheels . | . . . Hover . | . . . Flight . | . . . Fastest Speed 50 | 50 160 160 Average Speed 198 | 146 170 226 Slowest Speed 350 | 160 350 260 Overloaded Moves . | . . . Propulsion Burnouts . | . . . Robots Hopped . | . . . Cave-ins Triggered . | . . . Exploration Rate (%) 27 | 9 40 33 Regions Visited 2 Branch Regions 1 Pre-discovered Areas . | . . . Known Exits Taken 1 | . 1 . Unknown Exits Taken 1 | 1 . . Scrap Searched 1 | . . 1 Spaces Dug . | . . . Terrain Destroyed 10 | . . 10 Melee . | . . . Projectile . | . . . AOE 10 | . . 10 Terrain Rammed . | . . . Walls Destroyed . | . . . Machines Disabled . | . . . Actions | -11 -10 -10 --------- Run | Yrd Mat Sub Total 1406 | 339 504 563 Wait 269 | 247 22 . Move 955 | 79 368 508 Hop . | . . . Pick Up 27 | 7 15 5 Fast Attach 2 | . 2 . Attach 12 | 6 3 3 Detach . | . . . Swap 12 | . 5 7 Drop 8 | . 3 5 Fire 119 | . 85 34 Melee 1 | . . 1 Ram . | . . . Kick . | . . . Crush 1 | . 1 . Escape Stasis . | . . . Rewire . | . . . Trap . | . . . Miscellaneous . | . . . Route ------- -11/Scrapyard -10/Materials (discovered 3 exits: *Mat x2 / *Sub) -10/Subcaves History --------- Turn | Location | Event 18 | -11/Scrapyard | Discovered new exit (range 16) 377 | -11/Scrapyard | Entered Materials 378 | -10/Materials | Build established: Mutant 758 | -10/Materials | Discovered new exit (range 4) 769 | -10/Materials | Identified exit to Materials 849 | -10/Materials | Discovered exit to Materials (range 16) 1173 | -10/Materials | Core integrity fell below 50% 1234 | -10/Materials | Discovered new exit (range 9) 1245 | -10/Materials | Identified exit to Subcaves 1276 | -10/Materials | Entered Subcaves 1372 | -10/Subcaves | Shifting Twisted Machinery released Sub. Machine Gun 1386 | -10/Subcaves | Ambushed by Subdwellers from Twisted Machinery 1437 | -10/Subcaves | Ambushed by swarm of Subdwellers 1466 | -10/Subcaves | Core integrity fell below 20% 1481 | -10/Subcaves | Lost 4 allies 1503 | -10/Subcaves | Destroyed 10 combat bots 1536 | -10/Subcaves | Shifting Twisted Machinery released Sub. Laser 2330 | -10/Subcaves | Shifting Twisted Machinery released Hvy. Riot Gun 2397 | -10/Subcaves | Shifting Twisted Machinery released Sub. Power Source 2401 | -10/Subcaves | Shifting Twisted Machinery released Flamer 2541 | -10/Subcaves | Destroyed by Y-45 Defender with Beam Rifle Last Messages --------------- 01542_ Subatomizers dissect the Disposable Heat Sink. 01672_ Acquired 5 matter. 01708_ Acquired 10 matter. 01721_ Acquired 5 matter. 01731_ Acquired 10 matter. 01757_ Acquired 8 matter. 01763_ O2-JTP(O) collects matter. 02033_ Searching scrap... 02033_ Found Riot Gun. 02033_ Found 40 Matter. 02247_ Subatomizers dissect the Grenade Launcher. 02275_ Acquired Lgt. Angular Momentum Engine. 02277_ Acquired 10 matter. 02283_ Dropped Aluminum Leg. 02297_ Subatomizers dissect the Sub. Optics. Hvy. Riot Gun falls loose from the Twisted Machinery. Sub. Power Source falls loose from the Twisted Machinery. Flamer falls loose from the Twisted Machinery. 02536_ Destroyed Flight Unit. 02536_ S-10 Pest destroyed. Map ----- +----------------------------------------------------+ | ??????????????????????????????????????????????? | | ??????????????????????????????????????????????? | | ??????????????????????????????????????????????? | | ??????????????????????????????????????????????? | | ??????????????????????????????????????????????? | | ??????????????????????????????????????????????? | | ??????????????????????????????????????????????? | | ??????????????????????????????????????????????? | | ??????????????????????????????????????????????? | | ??????????????????????????????????????????????? | | ????????????????????##????????????????????????? | | ?????????????????? ????????????????????????? | | ????????????????? ????????????????????????? | | ????????????????? ????????????????????????? | | ?????????????????? ????????????????????????? | | ?????????????????? ????????????????????????? | | ?????????????????## %[#???#???????????????????? | | ?????????????????# #?# ??????? ???????????? | | ?????????????????# #? ?????? ???????????? | | ?????????????????# Y ## ?????? ???????????? | | ?????????????????# ???????# #?????????? | | ?????????????????# ???????# "##????????? | | ??????????????????# ??????##?# ""#????????? | | ?????????????????## ?? ?##"##"""###??????? | | ?????????????????# #?? # " """"""##?????? | | ??????????????????# @##?# "*"" #?##### | | ??????????????????# ##?# """ ### # | | ??????????????????# #?????#" | | ?????????????????## ##????## | | ?????????????????# ###??### ## ## # # | | ?????????????????#### #### # ########## | | ????????????????????# |"" ##?####??# | | ????????????????????## " ### ### | | ?????????????????????### #### #" | | ???????????????????????## ##??#### ###### # ## | | ????????????????????????####??????###????###### | | ??????????????????????????????????????????????? | | ??????????????????????????????????????????????? | | ??????????????????????????????????????????????? | | ??????????????????????????????????????????????? | | ??????????????????????????????????????????????? | | ??????????????????????????????????????????????? | | ??????????????????????????????????????????????? | | ??????????????????????????????????????????????? | | ??????????????????????????????????????????????? | | ??????????????????????????????????????????????? | | ??????????????????????????????????????????????? | | ??????????????????????????????????????????????? | | ??????????????????????????????????????????????? | | ??????????????????????????????????????????????? | +----------------------------------------------------+ Best States ------------- Heat Dissipation 25 Energy Generation 10 Energy Capacity 250 Matter Stores 300 Matter Capacity 300 Sight Range 16 Terrain Scan Range 14 Terrain Scan Density 10 Evasion (%) 40 Recoil Reduction 2 Item Schematics ----------------- Lgt. Treads | -10/Materials | Hacked Robot Schematics ------------------ None Fabricated ------------ Nothing Alien Tech Used ----------------- None Achievements -------------- Quick And Dirty Challenges ------------ None Game ------ Seed TerrainLinkedAmplifier Manual? 0 Play Time 00:25:53 Cumulative 12.3 hours Start 2024.04.01 @ 16:43:45 End 2024.04.01 @ 17:06:28 Sessions 1 Manual Loads 0 Difficulty Rogue Special Mode None Game No. 14 Rogue 14 Adventurer 0 Explorer 0 Win Type - Total 0 Types 0/0/0/0/0/0/0/0/0 Lore% 6 Gallery% 19 Achievement% 16 Wizard Run 0 Options --------- Layout 0 ASCII 0 Keyboard 0 Movement Mouse Keybinds 0 Fullscreen 1 Font 24/Smallcaps Map View 76x50 Zoom Use 0% Tactical HUD 1 Map Filters NONE Filters NONE Steam 1 RUN: dbe16751-3b6b-4729-bc97-c264f878900a